[Event "Live Chess"]
[Site "Chess.com"]
[Date "2024.06.02"]
[Round "-"]
[White "ACM42"]
[Black "wadsy27"]
[Result "1-0"]
[WhiteElo "2200"]
[BlackElo "2581"]
[TimeControl "300"]
[EndTime "4:59:11 PDT"]
[Termination "ACM42 won by resignation"]

1. e4 {[%clk 0:04:57.7]} 1... c5 {[%clk 0:04:57.7]} 2. Nf3 {[%clk 0:04:56.8]}
2... e6 {[%clk 0:04:52.4]} 3. d4 {[%clk 0:04:55.8]} 3... cxd4 {[%clk 0:04:46.2]}
4. Nxd4 {[%clk 0:04:55.7]} 4... Nc6 {[%clk 0:04:45.2]} 5. c4 {[%clk 0:04:52.3]}
5... Nf6 {[%clk 0:04:43.8]} 6. Nc3 {[%clk 0:04:51.2]} 6... Bb4 {[%clk
0:04:42.9]} 7. Nxc6 {[%clk 0:04:46.9]} 7... bxc6 {[%clk 0:04:42.8]} 8. e5 {[%clk
0:04:46]} 8... Ne4 {[%clk 0:04:40]} 9. Qd4 {[%clk 0:04:29.1]} 9... Qa5 {[%clk
0:04:34.5]} 10. Bd2 {[%clk 0:04:09.1]} 10... Nxd2 {[%clk 0:04:23.1]} 11. Kxd2
{[%clk 0:04:07.4]} 11... Bxc3+ {[%clk 0:04:16.3]} 12. Qxc3 {[%clk 0:04:05.8]}
12... Qxc3+ {[%clk 0:04:13.1]} 13. Kxc3 {[%clk 0:04:04.5]} 13... c5 {[%clk
0:04:11.9]} 14. Bd3 {[%clk 0:03:54.4]} 14... Bb7 {[%clk 0:04:10.9]} 15. f3
{[%clk 0:03:53.5]} 15... Bc6 {[%clk 0:04:09.7]} 16. Rhe1 {[%clk 0:03:49.2]}
16... Ke7 {[%clk 0:04:06.9]} 17. Be4 {[%clk 0:03:48.3]} 17... Rhc8 {[%clk
0:04:04.7]} 18. Rad1 {[%clk 0:03:46.6]} 18... a5 {[%clk 0:04:03]} 19. Re3 {[%clk
0:03:37.5]} 19... Ra7 {[%clk 0:04:01]} 20. h4 {[%clk 0:03:33]} 20... h6 {[%clk
0:03:51.4]} 21. g4 {[%clk 0:03:26.9]} 21... a4 {[%clk 0:03:49.9]} 22. h5 {[%clk
0:03:18]} 22... Rb7 {[%clk 0:03:46.4]} 23. Rd2 {[%clk 0:03:09.6]} 23... Rcc7
{[%clk 0:03:35.7]} 24. Rd6 {[%clk 0:02:43.6]} 24... Bxe4 {[%clk 0:03:31.4]} 25.
Rxe4 {[%clk 0:02:40.1]} 25... Rb4 {[%clk 0:03:30.8]} 26. Re2 {[%clk 0:02:33.9]}
26... f6 {[%clk 0:03:25.6]} 27. f4 {[%clk 0:02:30.7]} 27... fxe5 {[%clk
0:03:16]} 28. fxe5 {[%clk 0:02:28.4]} 28... Rb8 {[%clk 0:03:14.5]} 29. Rf2
{[%clk 0:02:26.4]} 29... Rg8 {[%clk 0:03:04.2]} 30. Ra6 {[%clk 0:02:13.9]} 30...
g6 {[%clk 0:03:02.9]} 31. hxg6 {[%clk 0:02:04.6]} 31... Rxg6 {[%clk 0:03:01.5]}
32. Rf4 {[%clk 0:02:04]} 32... Rg5 {[%clk 0:02:59.2]} 33. Re4 {[%clk 0:02:02.4]}
33... Rc8 {[%clk 0:02:52.8]} 34. Rxa4 {[%clk 0:01:59.9]} 34... Rcg8 {[%clk
0:02:51.8]} 35. Ra5 {[%clk 0:01:54.3]} 35... Rxg4 {[%clk 0:02:50.3]} 36. Rxg4
{[%clk 0:01:52.7]} 36... Rxg4 {[%clk 0:02:48.5]} 37. Rxc5 {[%clk 0:01:51.9]}
37... h5 {[%clk 0:02:47.5]} 38. Rc8 {[%clk 0:01:50.6]} 38... Re4 {[%clk
0:02:45.4]} 39. b4 {[%clk 0:01:42]} 39... Rxe5 {[%clk 0:02:40.8]} 40. b5 {[%clk
0:01:39.5]} 40... Re3+ {[%clk 0:02:37]} 41. Kb4 {[%clk 0:01:36.2]} 41... Re2
{[%clk 0:02:35.8]} 42. a4 {[%clk 0:01:35.1]} 42... Rb2+ {[%clk 0:02:30.9]} 43.
Kc5 {[%clk 0:01:30.7]} 43... d6+ {[%clk 0:02:29.3]} 44. Kb6 {[%clk 0:01:27.6]}
44... e5 {[%clk 0:02:26.6]} 45. a5 {[%clk 0:01:25.2]} 45... e4 {[%clk
0:02:25.8]} 46. a6 {[%clk 0:01:24.4]} 46... e3 {[%clk 0:02:21.9]} 47. a7 {[%clk
0:01:22.8]} 47... Ra2 {[%clk 0:02:15.6]} 48. a8=Q {[%clk 0:01:20.2]} 1-0

[Event "Live Chess"]
[Site "Chess.com"]
[Date "2024.06.02"]
[Round "-"]
[White "booktrunk"]
[Black "TheSmoulderingMaster"]
[Result "1-0"]
[WhiteElo "1506"]
[BlackElo "1765"]
[TimeControl "300"]
[EndTime "4:59:35 PDT"]
[Termination "booktrunk won by resignation"]

1. d4 {[%clk 0:04:50.7]} 1... Nf6 {[%clk 0:04:55.6]} 2. Nc3 {[%clk 0:04:47.3]}
2... g6 {[%clk 0:04:54.6]} 3. a3 {[%clk 0:04:44.6]} 3... Bg7 {[%clk 0:04:51.3]}
4. Bf4 {[%clk 0:04:43.3]} 4... O-O {[%clk 0:04:47]} 5. Nb5 {[%clk 0:04:41.6]}
5... Na6 {[%clk 0:04:44.3]} 6. e3 {[%clk 0:04:39.2]} 6... c6 {[%clk 0:04:43.4]}
7. Nc3 {[%clk 0:04:34.9]} 7... d5 {[%clk 0:04:41.5]} 8. Bxa6 {[%clk 0:04:30.6]}
8... bxa6 {[%clk 0:04:40.1]} 9. h4 {[%clk 0:04:28.8]} 9... Nh5 {[%clk
0:04:38.7]} 10. Bh2 {[%clk 0:04:24.2]} 10... Re8 {[%clk 0:04:37.9]} 11. Qd2
{[%clk 0:04:16.1]} 11... e5 {[%clk 0:04:34.8]} 12. dxe5 {[%clk 0:04:13.9]} 12...
Bxe5 {[%clk 0:04:34]} 13. Bxe5 {[%clk 0:04:11.9]} 13... Rxe5 {[%clk 0:04:33.9]}
14. Nf3 {[%clk 0:04:09.4]} 14... Re8 {[%clk 0:04:29]} 15. O-O-O {[%clk
0:04:07.4]} 15... Bg4 {[%clk 0:04:26.9]} 16. Rde1 {[%clk 0:04:02]} 16... Rb8
{[%clk 0:04:25.1]} 17. Nd4 {[%clk 0:03:55.7]} 17... Qb6 {[%clk 0:04:22.9]} 18.
b3 {[%clk 0:03:52.8]} 18... Bd7 {[%clk 0:04:08.7]} 19. Na4 {[%clk 0:03:50.7]}
19... Qb7 {[%clk 0:04:04.5]} 20. Nc5 {[%clk 0:03:49.2]} 20... Qc7 {[%clk
0:04:03.5]} 21. Nxa6 {[%clk 0:03:39.3]} 21... Qd6 {[%clk 0:04:02.6]} 22. Nxb8
{[%clk 0:03:37.7]} 22... Qxa3+ {[%clk 0:04:01.5]} 23. Kd1 {[%clk 0:03:35.4]}
23... Rxb8 {[%clk 0:04:00.6]} 24. Ke2 {[%clk 0:03:33.9]} 24... Re8 {[%clk
0:03:56.5]} 25. Ra1 {[%clk 0:03:32.2]} 25... Qd6 {[%clk 0:03:49]} 26. Rxa7
{[%clk 0:03:28.1]} 26... Nf4+ {[%clk 0:03:45.1]} 27. Kf1 {[%clk 0:03:24.5]}
27... Nh5 {[%clk 0:03:37.7]} 28. Ra1 {[%clk 0:03:16.4]} 28... c5 {[%clk
0:03:35.4]} 29. Nf3 {[%clk 0:03:12.1]} 29... Qf6 {[%clk 0:03:30.1]} 30. Rd1
{[%clk 0:03:05.3]} 30... Bc6 {[%clk 0:03:27.1]} 31. Kg1 {[%clk 0:02:56.7]} 31...
Rd8 {[%clk 0:03:23.5]} 32. Ng5 {[%clk 0:02:51.7]} 32... Ng7 {[%clk 0:03:19.3]}
33. Qe2 {[%clk 0:02:48.1]} 33... h6 {[%clk 0:03:15.6]} 34. Nf3 {[%clk
0:02:43.3]} 34... Qf5 {[%clk 0:03:13.9]} 35. Qd3 {[%clk 0:02:37.5]} 35... Qg4
{[%clk 0:03:11]} 36. Ne5 {[%clk 0:02:24.1]} 36... Qe6 {[%clk 0:03:08.5]} 37.
Nxc6 {[%clk 0:02:22.3]} 37... Qxc6 {[%clk 0:03:08.4]} 38. c4 {[%clk 0:02:17.1]}
38... d4 {[%clk 0:03:05.3]} 39. exd4 {[%clk 0:02:10.6]} 39... Rxd4 {[%clk
0:03:02.2]} 40. Qe2 {[%clk 0:02:08.8]} 40... Re4 {[%clk 0:02:58.6]} 41. Qf3
{[%clk 0:02:01]} 41... Nf5 {[%clk 0:02:54.2]} 42. Kf1 {[%clk 0:01:55.1]} 42...
Qe6 {[%clk 0:02:49.6]} 43. Qd3 {[%clk 0:01:44.3]} 43... Rd4 {[%clk 0:02:42.7]}
44. Qe2 {[%clk 0:01:36.6]} 44... Re4 {[%clk 0:02:41.3]} 45. Qc2 {[%clk
0:01:31.4]} 45... Rf4 {[%clk 0:02:31.4]} 46. Kg1 {[%clk 0:01:10.4]} 46... Qf6
{[%clk 0:02:25]} 47. Rf1 {[%clk 0:01:05.2]} 47... Ng3 {[%clk 0:02:18.7]} 48.
fxg3 {[%clk 0:00:58.4]} 48... Rxf1+ {[%clk 0:02:17]} 49. Kh2 {[%clk 0:00:57.5]}
49... Rf2 {[%clk 0:02:10.6]} 50. Qd3 {[%clk 0:00:53.6]} 50... Kh7 {[%clk
0:02:08.5]} 51. Rg1 {[%clk 0:00:47.3]} 51... Rb2 {[%clk 0:02:03.6]} 52. Rf1
{[%clk 0:00:42.5]} 52... Qb6 {[%clk 0:01:58.2]} 53. Rxf7+ {[%clk 0:00:40.1]}
53... Kh8 {[%clk 0:01:54.3]} 54. Qd7 {[%clk 0:00:36.8]} 1-0

[Event "Live Chess"]
[Site "Chess.com"]
[Date "2024.06.02"]
[Round "-"]
[White "upoe610"]
[Black "kylet1990"]
[Result "1-0"]
[WhiteElo "2134"]
[BlackElo "750"]
[TimeControl "300"]
[EndTime "4:59:39 PDT"]
[Termination "upoe610 won by resignation"]

1. c4 {[%clk 0:04:55]} 1... c5 {[%clk 0:04:58.3]} 2. g3 {[%clk 0:04:54]} 2... e5
{[%clk 0:04:56.9]} 3. Bg2 {[%clk 0:04:52.5]} 3... Nc6 {[%clk 0:04:53.7]} 4. Nc3
{[%clk 0:04:49.3]} 4... Nf6 {[%clk 0:04:50.8]} 5. Nf3 {[%clk 0:04:48.5]} 5...
Bd6 {[%clk 0:04:48.6]} 6. d3 {[%clk 0:04:46.5]} 6... b6 {[%clk 0:04:44.6]} 7.
Bg5 {[%clk 0:04:45.2]} 7... h6 {[%clk 0:04:41.9]} 8. Bxf6 {[%clk 0:04:43]} 8...
Qxf6 {[%clk 0:04:41.1]} 9. Nd5 {[%clk 0:04:42.9]} 9... Qd8 {[%clk 0:04:37.1]}
10. O-O {[%clk 0:04:41.5]} 10... Nb4 {[%clk 0:04:34.4]} 11. Nd2 {[%clk
0:04:39.3]} 11... Nxd5 {[%clk 0:04:32.9]} 12. Bxd5 {[%clk 0:04:39.2]} 12... Rb8
{[%clk 0:04:30]} 13. Ne4 {[%clk 0:04:38.3]} 13... Bc7 {[%clk 0:04:24.2]} 14. e3
{[%clk 0:04:37.7]} 14... O-O {[%clk 0:04:22.9]} 15. Qh5 {[%clk 0:04:32.7]} 15...
d6 {[%clk 0:04:07.1]} 16. f4 {[%clk 0:04:25.2]} 16... Be6 {[%clk 0:03:59.8]} 17.
Bxe6 {[%clk 0:04:18.5]} 17... fxe6 {[%clk 0:03:58.5]} 18. Qg6 {[%clk 0:04:17.4]}
18... exf4 {[%clk 0:03:49.6]} 19. Rxf4 {[%clk 0:04:11.8]} 19... Rxf4 {[%clk
0:03:48.1]} 20. gxf4 {[%clk 0:04:10.3]} 20... e5 {[%clk 0:03:42.7]} 21. Kf2
{[%clk 0:04:07.9]} 21... exf4 {[%clk 0:03:41.1]} 22. Rg1 {[%clk 0:04:05.9]}
22... Qd7 {[%clk 0:03:33.2]} 23. Nf6+ {[%clk 0:04:04.3]} 1-0

[Event "Live Chess"]
[Site "Chess.com"]
[Date "2024.06.02"]
[Round "-"]
[White "Dhaydon19"]
[Black "MagnersCarlsberg2870"]
[Result "1-0"]
[WhiteElo "2637"]
[BlackElo "1770"]
[TimeControl "300"]
[EndTime "5:00:06 PDT"]
[Termination "Dhaydon19 won by resignation"]

1. d4 {[%clk 0:04:58]} 1... e5 {[%clk 0:04:56.8]} 2. Nf3 {[%clk 0:04:57.3]} 2...
exd4 {[%clk 0:04:54.4]} 3. Nxd4 {[%clk 0:04:56.3]} 3... Bc5 {[%clk 0:04:52.1]}
4. g3 {[%clk 0:04:54.8]} 4... Qf6 {[%clk 0:04:49.8]} 5. Nf3 {[%clk 0:04:53.7]}
5... Nc6 {[%clk 0:04:45.5]} 6. Bg2 {[%clk 0:04:52.3]} 6... Ne5 {[%clk
0:04:42.5]} 7. O-O {[%clk 0:04:49.1]} 7... d6 {[%clk 0:04:41.4]} 8. Nc3 {[%clk
0:04:47.5]} 8... c6 {[%clk 0:04:33.5]} 9. Ne4 {[%clk 0:04:43.8]} 9... Qe7 {[%clk
0:04:20.2]} 10. Nxe5 {[%clk 0:04:41.8]} 10... dxe5 {[%clk 0:04:18.3]} 11. Nxc5
{[%clk 0:04:41]} 11... Qxc5 {[%clk 0:04:17.2]} 12. Be3 {[%clk 0:04:40.6]} 12...
Qe7 {[%clk 0:04:15.1]} 13. c4 {[%clk 0:04:37]} 13... Nf6 {[%clk 0:04:13.6]} 14.
h3 {[%clk 0:04:34.6]} 14... O-O {[%clk 0:04:12]} 15. Qc2 {[%clk 0:04:31.2]}
15... Rd8 {[%clk 0:04:05.4]} 16. Rad1 {[%clk 0:04:28.8]} 16... Be6 {[%clk
0:04:04.3]} 17. Qc3 {[%clk 0:04:26.3]} 17... e4 {[%clk 0:04:00.8]} 18. Bg5
{[%clk 0:04:23.3]} 18... h6 {[%clk 0:03:59.1]} 19. Be3 {[%clk 0:04:19.1]} 19...
Rd7 {[%clk 0:03:51.7]} 20. Rxd7 {[%clk 0:04:17]} 20... Qxd7 {[%clk 0:03:50.7]}
21. g4 {[%clk 0:04:08.1]} 21... Rd8 {[%clk 0:03:46.2]} 22. b3 {[%clk 0:04:06.7]}
22... Nxg4 {[%clk 0:03:36]} 23. hxg4 {[%clk 0:04:05.1]} 23... Bxg4 {[%clk
0:03:35]} 24. Re1 {[%clk 0:04:00.8]} 24... Bh3 {[%clk 0:03:30.9]} 25. Qe5 {[%clk
0:03:57.3]} 25... Bxg2 {[%clk 0:03:03]} 26. Kxg2 {[%clk 0:03:55.2]} 26... Qg4+
{[%clk 0:03:01]} 27. Qg3 {[%clk 0:03:54.2]} 1-0

[Event "Live Chess"]
[Site "Chess.com"]
[Date "2024.06.02"]
[Round "-"]
[White "FlyingChessKestrel13"]
[Black "KeithArkell"]
[Result "0-1"]
[WhiteElo "2076"]
[BlackElo "2430"]
[TimeControl "300"]
[EndTime "5:00:12 PDT"]
[Termination "KeithArkell won by resignation"]

1. e4 {[%clk 0:04:57]} 1... c6 {[%clk 0:04:59.2]} 2. d4 {[%clk 0:04:52.4]} 2...
d5 {[%clk 0:04:59.1]} 3. Nc3 {[%clk 0:04:52]} 3... dxe4 {[%clk 0:04:57.6]} 4.
Nxe4 {[%clk 0:04:51.2]} 4... Nd7 {[%clk 0:04:57.3]} 5. Nf3 {[%clk 0:04:49.4]}
5... Ngf6 {[%clk 0:04:55.8]} 6. Ng3 {[%clk 0:04:48]} 6... c5 {[%clk 0:04:54.5]}
7. d5 {[%clk 0:04:45.4]} 7... Nb6 {[%clk 0:04:53.2]} 8. c4 {[%clk 0:04:44]} 8...
e6 {[%clk 0:04:51.8]} 9. dxe6 {[%clk 0:04:34]} 9... Qxd1+ {[%clk 0:04:51.7]} 10.
Kxd1 {[%clk 0:04:33.8]} 10... Bxe6 {[%clk 0:04:48.9]} 11. b3 {[%clk 0:04:33]}
11... O-O-O+ {[%clk 0:04:47.6]} 12. Bd2 {[%clk 0:04:30.1]} 12... Ng4 {[%clk
0:04:46.1]} 13. Ke1 {[%clk 0:04:28.2]} 13... Be7 {[%clk 0:04:42.8]} 14. h3
{[%clk 0:04:23.7]} 14... Bf6 {[%clk 0:04:41.8]} 15. Rd1 {[%clk 0:04:17.6]} 15...
Ne5 {[%clk 0:04:40.6]} 16. Be2 {[%clk 0:04:15.9]} 16... Nd3+ {[%clk 0:04:34.8]}
17. Kf1 {[%clk 0:04:07.4]} 17... Rhe8 {[%clk 0:04:09.8]} 18. Ba5 {[%clk
0:03:51]} 18... Nf4 {[%clk 0:04:06.5]} 19. Rxd8+ {[%clk 0:03:46.7]} 19... Rxd8
{[%clk 0:04:05.2]} 20. Ne4 {[%clk 0:03:28]} 20... Be7 {[%clk 0:03:23.3]} 21. g3
{[%clk 0:03:24.5]} 21... Nxe2 {[%clk 0:03:22.1]} 22. Kxe2 {[%clk 0:03:23.3]}
22... h6 {[%clk 0:03:20.9]} 23. g4 {[%clk 0:03:08.5]} 23... f5 {[%clk
0:03:18.9]} 24. gxf5 {[%clk 0:02:57.5]} 24... Bxf5 {[%clk 0:03:17.6]} 25. Ng3
{[%clk 0:02:56.7]} 25... Bd3+ {[%clk 0:03:16.4]} 26. Ke3 {[%clk 0:02:52.7]}
26... Bc2 {[%clk 0:03:01.9]} 27. Rc1 {[%clk 0:02:41.4]} 27... Bh7 {[%clk
0:02:51.7]} 28. Re1 {[%clk 0:02:20.3]} 28... Bf6 {[%clk 0:02:45.8]} 29. Nh5
{[%clk 0:01:43]} 29... Bb2 {[%clk 0:02:41.7]} 30. Kf4 {[%clk 0:01:28.1]} 30...
Rf8+ {[%clk 0:02:39.6]} 31. Kg3 {[%clk 0:01:25.6]} 31... Nd7 {[%clk 0:02:37.7]}
32. Re7 {[%clk 0:01:17]} 32... b6 {[%clk 0:02:31.3]} 33. Bd2 {[%clk 0:01:13.2]}
33... Kd8 {[%clk 0:02:20.1]} 34. Re1 {[%clk 0:01:01.1]} 34... Rf5 {[%clk
0:01:54.1]} 35. Nf4 {[%clk 0:00:50.5]} 35... Ne5 {[%clk 0:01:45.4]} 36. Nh4
{[%clk 0:00:27.5]} 36... Rg5+ {[%clk 0:01:44]} 37. Kh2 {[%clk 0:00:26.5]} 37...
Kd7 {[%clk 0:01:39.3]} 38. Nd5 {[%clk 0:00:19.3]} 38... Rh5 {[%clk 0:01:35.8]}
39. Kg3 {[%clk 0:00:19]} 39... Rxh4 {[%clk 0:01:34.9]} 40. Kxh4 {[%clk
0:00:17.6]} 40... Nf3+ {[%clk 0:01:34.1]} 41. Kg3 {[%clk 0:00:17]} 41... Nxe1
{[%clk 0:01:30.1]} 42. Bxe1 {[%clk 0:00:16]} 42... Bb1 {[%clk 0:01:28.6]} 43. a3
{[%clk 0:00:14.2]} 43... Bxa3 {[%clk 0:01:26.4]} 44. Bc3 {[%clk 0:00:13.8]}
44... g5 {[%clk 0:01:24.7]} 45. f4 {[%clk 0:00:12.4]} 45... gxf4+ {[%clk
0:01:23.2]} 46. Kxf4 {[%clk 0:00:11.6]} 46... Ba2 {[%clk 0:01:22.2]} 47. Ne3
{[%clk 0:00:09.1]} 47... Bxb3 {[%clk 0:01:21.2]} 48. Ke4 {[%clk 0:00:08.7]}
48... Bc1 {[%clk 0:01:19.9]} 0-1

[Event "Live Chess"]
[Site "Chess.com"]
[Date "2024.06.02"]
[Round "-"]
[White "raclement"]
[Black "PureDashingOctopus"]
[Result "0-1"]
[WhiteElo "1723"]
[BlackElo "2280"]
[TimeControl "300"]
[EndTime "5:00:54 PDT"]
[Termination "PureDashingOctopus won by resignation"]

1. Nf3 {[%clk 0:04:55.5]} 1... c5 {[%clk 0:04:58.3]} 2. g3 {[%clk 0:04:52.8]}
2... d5 {[%clk 0:04:56.9]} 3. Bg2 {[%clk 0:04:50.6]} 3... g6 {[%clk 0:04:56.3]}
4. c4 {[%clk 0:04:46.8]} 4... Nf6 {[%clk 0:04:53.8]} 5. cxd5 {[%clk 0:04:45.5]}
5... Nxd5 {[%clk 0:04:53.3]} 6. O-O {[%clk 0:04:36.1]} 6... Bg7 {[%clk
0:04:51.3]} 7. Nc3 {[%clk 0:04:34.4]} 7... Nxc3 {[%clk 0:04:49.7]} 8. dxc3
{[%clk 0:04:32.2]} 8... Qxd1 {[%clk 0:04:47.8]} 9. Rxd1 {[%clk 0:04:30.5]} 9...
Nc6 {[%clk 0:04:47.4]} 10. Be3 {[%clk 0:04:21.8]} 10... c4 {[%clk 0:04:38.3]}
11. Nd4 {[%clk 0:04:17.7]} 11... Nxd4 {[%clk 0:04:32.7]} 12. Bxd4 {[%clk
0:04:15.8]} 12... O-O {[%clk 0:04:32.3]} 13. Bxg7 {[%clk 0:04:14.2]} 13... Kxg7
{[%clk 0:04:32.2]} 14. Rd2 {[%clk 0:04:10.9]} 14... Rb8 {[%clk 0:04:27.1]} 15.
Rad1 {[%clk 0:04:09.1]} 15... Be6 {[%clk 0:04:24.8]} 16. e3 {[%clk 0:03:59.2]}
16... b5 {[%clk 0:04:19.8]} 17. Rd4 {[%clk 0:03:54]} 17... b4 {[%clk 0:04:17.7]}
18. cxb4 {[%clk 0:03:50]} 18... Rxb4 {[%clk 0:04:13.4]} 19. R1d2 {[%clk
0:03:48.5]} 19... Rfb8 {[%clk 0:04:09.1]} 20. Bf1 {[%clk 0:03:46.8]} 20... Rxb2
{[%clk 0:04:07.1]} 21. Rxb2 {[%clk 0:03:41.3]} 21... Rxb2 {[%clk 0:04:07]} 22.
Bxc4 {[%clk 0:03:38.7]} 22... Bxc4 {[%clk 0:03:51.6]} 23. Rxc4 {[%clk
0:03:34.9]} 23... Rxa2 {[%clk 0:03:51.5]} 24. Rc7 {[%clk 0:03:33.5]} 24... Kf6
{[%clk 0:03:49.1]} 25. Kg2 {[%clk 0:03:29.7]} 25... a5 {[%clk 0:03:46.7]} 26.
Ra7 {[%clk 0:03:26.5]} 26... a4 {[%clk 0:03:44.2]} 27. h4 {[%clk 0:03:21.3]}
27... h5 {[%clk 0:03:42.2]} 28. Kf3 {[%clk 0:03:19.7]} 28... a3 {[%clk
0:03:40.6]} 29. Ra6+ {[%clk 0:03:10.1]} 29... e6 {[%clk 0:03:38.3]} 30. Ra7
{[%clk 0:03:07.9]} 30... Ra1 {[%clk 0:03:35]} 31. Ra6 {[%clk 0:03:06.4]} 31...
Ke5 {[%clk 0:03:29.6]} 32. Ra5+ {[%clk 0:03:03.7]} 32... Kd6 {[%clk 0:03:27.4]}
33. Ra7 {[%clk 0:03:01.6]} 33... f5 {[%clk 0:03:25]} 34. Ra6+ {[%clk 0:02:59.8]}
34... Ke5 {[%clk 0:03:22.7]} 35. Ra5+ {[%clk 0:02:58.1]} 35... Kd6 {[%clk
0:03:20.1]} 36. Ra6+ {[%clk 0:02:57]} 36... Kd5 {[%clk 0:03:19.4]} 37. Ra5+
{[%clk 0:02:55.8]} 37... Kc4 {[%clk 0:03:15.3]} 38. Ra6 {[%clk 0:02:54.1]} 38...
Kb3 {[%clk 0:03:10.9]} 39. Rxe6 {[%clk 0:02:52.3]} 39... Rc1 {[%clk 0:03:06.4]}
40. Rb6+ {[%clk 0:02:49.4]} 40... Ka2 {[%clk 0:03:00.9]} 41. Rxg6 {[%clk
0:02:47.7]} 41... Rc2 {[%clk 0:02:55.7]} 42. Rg5 {[%clk 0:02:33.9]} 42... Kb1
{[%clk 0:02:52.6]} 43. Rxf5 {[%clk 0:02:32.6]} 43... a2 {[%clk 0:02:50.9]} 44.
Ra5 {[%clk 0:02:30.4]} 44... a1=Q {[%clk 0:02:47.2]} 45. Rxa1+ {[%clk
0:02:27.6]} 45... Kxa1 {[%clk 0:02:47.1]} 46. e4 {[%clk 0:02:24.5]} 46... Kb2
{[%clk 0:02:46.2]} 47. g4 {[%clk 0:02:19.1]} 47... Kc3 {[%clk 0:02:23.3]} 48. g5
{[%clk 0:02:16.2]} 48... Kd4 {[%clk 0:02:21.7]} 49. g6 {[%clk 0:02:13.8]} 49...
Ke5 {[%clk 0:02:20.3]} 50. g7 {[%clk 0:02:09.8]} 50... Rc8 {[%clk 0:02:19]} 51.
Ke3 {[%clk 0:02:08.8]} 51... Rg8 {[%clk 0:02:09.8]} 52. f4+ {[%clk 0:02:07.3]}
52... Kf6 {[%clk 0:02:07.8]} 53. Kd4 {[%clk 0:02:02.8]} 53... Rxg7 {[%clk
0:02:06.1]} 54. e5+ {[%clk 0:01:59.4]} 54... Kf5 {[%clk 0:02:05.3]} 55. Kd5
{[%clk 0:01:57.6]} 55... Rd7+ {[%clk 0:02:04]} 56. Kc6 {[%clk 0:01:53.2]} 56...
Rd1 {[%clk 0:02:03.5]} 0-1

[Event "Live Chess"]
[Site "Chess.com"]
[Date "2024.06.02"]
[Round "-"]
[White "GwaryTek"]
[Black "KyryloPoluliakh"]
[Result "1/2-1/2"]
[WhiteElo "1834"]
[BlackElo "1535"]
[TimeControl "300"]
[EndTime "5:00:58 PDT"]
[Termination "Game drawn by repetition"]

1. d4 {[%clk 0:04:55.8]} 1... Nf6 {[%clk 0:04:57.8]} 2. c4 {[%clk 0:04:50.7]}
2... g6 {[%clk 0:04:57.3]} 3. Nc3 {[%clk 0:04:49.1]} 3... Bg7 {[%clk 0:04:56.8]}
4. e4 {[%clk 0:04:48]} 4... d6 {[%clk 0:04:54.1]} 5. f3 {[%clk 0:04:46.5]} 5...
O-O {[%clk 0:04:52.5]} 6. Bg5 {[%clk 0:04:43.9]} 6... Nc6 {[%clk 0:04:50.7]} 7.
d5 {[%clk 0:04:42.4]} 7... Ne5 {[%clk 0:04:46.6]} 8. h3 {[%clk 0:04:41.2]} 8...
e6 {[%clk 0:04:40.7]} 9. f4 {[%clk 0:04:35.9]} 9... Ned7 {[%clk 0:04:37.4]} 10.
Nf3 {[%clk 0:04:34.8]} 10... Qe8 {[%clk 0:04:30.9]} 11. Be2 {[%clk 0:04:29]}
11... exd5 {[%clk 0:04:21.9]} 12. exd5 {[%clk 0:04:28.9]} 12... Ne4 {[%clk
0:04:18.6]} 13. O-O {[%clk 0:04:15.7]} 13... Nxc3 {[%clk 0:04:14]} 14. bxc3
{[%clk 0:04:14.5]} 14... Bxc3 {[%clk 0:04:12.9]} 15. Rc1 {[%clk 0:04:12.4]}
15... Bg7 {[%clk 0:04:10.3]} 16. Bd3 {[%clk 0:04:03.9]} 16... f6 {[%clk
0:04:08.6]} 17. Bh4 {[%clk 0:04:01.6]} 17... Qf7 {[%clk 0:04:06.1]} 18. Re1
{[%clk 0:03:46.7]} 18... Nc5 {[%clk 0:04:02.8]} 19. Bf2 {[%clk 0:03:24.2]} 19...
Nxd3 {[%clk 0:03:59.1]} 20. Qxd3 {[%clk 0:03:24.1]} 20... Bf5 {[%clk 0:03:49.6]}
21. Qb3 {[%clk 0:03:20.4]} 21... b6 {[%clk 0:03:44.1]} 22. Nd4 {[%clk
0:03:16.8]} 22... Bd7 {[%clk 0:03:38.7]} 23. f5 {[%clk 0:02:17.9]} 23... gxf5
{[%clk 0:03:27.6]} 24. Qf3 {[%clk 0:01:57.2]} 24... Rfe8 {[%clk 0:03:22.4]} 25.
Nxf5 {[%clk 0:01:44.3]} 25... Bxf5 {[%clk 0:03:19.2]} 26. Qxf5 {[%clk
0:01:41.8]} 26... Rxe1+ {[%clk 0:03:17.8]} 27. Rxe1 {[%clk 0:01:27.6]} 27... Re8
{[%clk 0:03:12.3]} 28. Rxe8+ {[%clk 0:01:16.4]} 28... Qxe8 {[%clk 0:03:10.2]}
29. Bd4 {[%clk 0:01:14.2]} 29... Qf7 {[%clk 0:02:56.8]} 30. Qc8+ {[%clk
0:01:01.1]} 30... Bf8 {[%clk 0:02:49.7]} 31. Qf5 {[%clk 0:00:58.7]} 31... Kg7
{[%clk 0:02:41.7]} 32. g4 {[%clk 0:00:56.1]} 32... Be7 {[%clk 0:02:33.8]} 33.
Kg2 {[%clk 0:00:29.6]} 33... Qg6 {[%clk 0:02:28.2]} 34. Qe6 {[%clk 0:00:24.9]}
34... Qc2+ {[%clk 0:02:21]} 35. Kg3 {[%clk 0:00:19.3]} 35... Qd3+ {[%clk
0:02:14.1]} 36. Be3 {[%clk 0:00:12.1]} 36... Kf8 {[%clk 0:02:01.7]} 37. Kh4
{[%clk 0:00:07.6]} 37... f5+ {[%clk 0:01:56.2]} 38. Kh5 {[%clk 0:00:04.8]} 38...
fxg4 {[%clk 0:01:50.7]} 39. Bh6+ {[%clk 0:00:03.5]} 39... Ke8 {[%clk 0:01:47.8]}
40. Qc8+ {[%clk 0:00:03.1]} 40... Kf7 {[%clk 0:01:45.8]} 41. Qe6+ {[%clk
0:00:02.6]} 41... Ke8 {[%clk 0:01:43.2]} 42. Qc8+ {[%clk 0:00:01.9]} 42... Bd8
{[%clk 0:01:41.6]} 43. Qe6+ {[%clk 0:00:01.2]} 43... Be7 {[%clk 0:01:40.6]}
1/2-1/2

[Event "Live Chess"]
[Site "Chess.com"]
[Date "2024.06.02"]
[Round "-"]
[White "TheSmoulderingMaster"]
[Black "Duke_of_Bebington"]
[Result "1-0"]
[WhiteElo "1770"]
[BlackElo "1628"]
[TimeControl "300"]
[EndTime "5:01:10 PDT"]
[Termination "TheSmoulderingMaster won by resignation"]

1. e4 {[%clk 0:04:58.4]} 1... e5 {[%clk 0:04:59]} 2. Nf3 {[%clk 0:04:57.3]} 2...
Nf6 {[%clk 0:04:58.1]} 3. Bc4 {[%clk 0:04:55]} 3... Nc6 {[%clk 0:04:56.4]} 4.
O-O {[%clk 0:04:52.1]} 4... d6 {[%clk 0:04:44.2]} 5. c3 {[%clk 0:04:50.7]} 5...
Nxe4 {[%clk 0:04:36.8]} 6. d4 {[%clk 0:04:49.4]} 6... d5 {[%clk 0:04:32]} 7. Bb3
{[%clk 0:04:48]} 7... Bd6 {[%clk 0:04:29.1]} 8. dxe5 {[%clk 0:04:46.7]} 8...
Bxe5 {[%clk 0:04:20.3]} 9. Bxd5 {[%clk 0:04:43.5]} 9... Nf6 {[%clk 0:04:17.5]}
10. Bxc6+ {[%clk 0:04:42.3]} 10... bxc6 {[%clk 0:04:17.4]} 11. Qxd8+ {[%clk
0:04:39.2]} 11... Kxd8 {[%clk 0:04:10.2]} 12. Nxe5 {[%clk 0:04:38.3]} 12... Ke7
{[%clk 0:04:08.3]} 13. Nxc6+ {[%clk 0:04:36.5]} 13... Kd6 {[%clk 0:04:07]} 14.
Nd4 {[%clk 0:04:34.8]} 14... Bb7 {[%clk 0:04:05.5]} 15. Bf4+ {[%clk 0:04:33.1]}
1-0